fUSD/lending_fUSD_20240608
["ID","MTS","AMOUNT","RATE_DAILY","PERIOD"]
[328843860,1717867842596,-96.34550061,0.0002986,5]
[328843861,1717867842647,-884.29427894,0.0002986,5]
[328843862,1717867842661,-345.1849985,0.0002986,5]
[328843863,1717867842674,-1476.6540648,0.0002986,5]
[328843864,1717867842686,-3753.29541752,0.0002986,5]
[328843865,1717867842699,-2222.0873454,0.0002986,5]
[328843866,1717867842817,-41587.31332761,0.0002986,5]
[328843867,1717867842993,-280550.16506662,0.0002986,5]
[328843869,1717867843004,-510.76470771,0.0002986,2]
[328843871,1717867843014,-500.0,0.00029863,4]
[328843873,1717867843024,-500.0,0.00029863,4]
[328843875,1717867843034,-500.0,0.00029863,4]
[328843877,1717867843044,-781.71554568,0.00029864,2]
[328843879,1717867843054,-781.71554568,0.00029873,2]
[328843881,1717867843064,-510.76470771,0.0002988,2]
[328843883,1717867843074,-781.71554568,0.00029882,2]
[328843885,1717867843084,-189.92070065,0.00029889,2]
[328843887,1717867843094,-781.71554568,0.00029891,2]
[328843889,1717867843105,-61436.4524,0.00029897,2]
[328843891,1717867843115,-500.0,0.00029898,4]
[328843893,1717867843126,-1515.79059578,0.00029899,2]
[328843915,1717867843340,-196.35,0.00029854,2]
[328843917,1717867843351,-15857.52510422,0.00029899,2]
[328843919,1717867843362,-500.0,0.00029899,2]
[328843921,1717867843372,-781.71554568,0.000299,2]
[328843923,1717867843382,-1000.16,0.000299,2]
[328843925,1717867843392,-304.02,0.000299,2]
[328843927,1717867843402,-510.76470771,0.000299,2]
[328843929,1717867843413,-762.90709765,0.000299,2]
[328843931,1717867843423,-4610.3336856,0.00029971,2]
[328843933,1717867843433,-1038.13385914,0.00029977,4]
[328843935,1717867843446,-428.03097649,0.00029977,4]
[328843960,1717867843689,-190.15516437,0.00029977,4]
[328843962,1717867843699,-1347.38102844,0.00029977,4]
[328843964,1717867843712,-308.93897156,0.00029977,4]
[328843966,1717867843722,-1511.57600887,0.00029977,4]
[328843968,1717867843735,-144.74399113,0.00029977,4]
[328843970,1717867843745,-500.0,0.00029978,4]
[328843972,1717867843755,-319.6973378,0.00029979,2]
[328843974,1717867843765,-319.6973378,0.00029979,2]
[328843976,1717867843776,-319.6973378,0.00029979,2]
[328843978,1717867843786,-285.24991962,0.00029979,2]
[328843990,1717867843899,-34.44741818,0.00029979,2]
[328843992,1717867843909,-319.6973378,0.00029979,2]
[328843994,1717867843919,-483.78991188,0.00029979,2]
[328844102,1717867846270,-258.0384721,0.00020563,2]
[328844103,1717867846281,-6143.99277562,0.00029979,2]
[328844104,1717867846291,-5311.9811023,0.00029979,2]
[328844105,1717867846301,-3996.1795171,0.00029979,2]
[328844106,1717867846311,-2680.3779319,0.00029979,2]
[328844107,1717867846322,-1364.5763468,0.00029979,2]
[328844108,1717867846332,-319.6973378,0.00029989,2]
[328844109,1717867846342,-562.5588375,0.00029989,2]
[328844110,1717867846353,-7943.5842726,0.00029989,2]
[328844111,1717867846364,-500.0,0.00029997,4]
[328844112,1717867846373,-791.69852173,0.00029998,2]
[328844113,1717867846383,-196.54622098,0.00029998,2]
[328844114,1717867846393,-4441.68139867,0.00029998,2]
[328844115,1717867846403,-155.0,0.00029998,2]
[328844116,1717867846412,-856.97889331,0.00029998,2]
[328844117,1717867846422,-155.0,0.00029998,2]
[328844118,1717867846432,-537.23750335,0.00029998,2]
[328844119,1717867846442,-1000.0,0.00029998,2]
[328844120,1717867846452,-1260.44934067,0.00029998,2]
[328844121,1717867846463,-157.9575,0.00029998,2]
[328844122,1717867846473,-545.44684599,0.00029998,2]
[328844123,1717867846483,-155.29079437,0.00029998,2]
[328844124,1717867846493,-10968.56338147,0.00029998,2]
[328844125,1717867846503,-1058.28035303,0.00029998,2]
[328844126,1717867846512,-7537.31948195,0.00029998,2]
[328844127,1717867846522,-1139.55065933,0.00029998,2]
[328844128,1717867846533,-412.72230835,0.00029998,2]
[328844129,1717867846542,-714.70481135,0.00029998,2]
[328844130,1717867846553,-202.34242002,0.00029998,2]
[328844131,1717867846563,-3384.04340712,0.00029998,2]
[328844132,1717867846573,-176.371291,0.00029998,2]
[328844133,1717867846583,-690.60707478,0.00029998,2]
[328844134,1717867846593,-185.99482265,0.00029998,2]
[328844135,1717867846603,-150.01,0.00029999,2]
[328844136,1717867846614,-5893.09556016,0.00029999,2]
[328844137,1717867846623,-500.0,0.00029999,4]
[328844138,1717867846632,-340.86776351,0.00029999,4]
[328844139,1717867846642,-1656.32,0.00029999,4]
[328844140,1717867846651,-1656.32,0.00029999,4]
[328844141,1717867846661,-1656.32,0.00029999,4]
[328844142,1717867846671,-1656.32,0.00029999,4]
[328844143,1717867846681,-1656.32,0.00029999,4]
[328844145,1717867846692,-1656.32,0.00029999,4]
[328844147,1717867846702,-1656.32,0.00029999,4]
[328844149,1717867846712,-1656.32,0.00029999,4]
[328844150,1717867846722,-1656.32,0.00029999,4]
[328844151,1717867846733,-1656.32,0.00029999,4]
[328844152,1717867846743,-1656.32,0.00029999,4]
[328844153,1717867846753,-1656.32,0.00029999,4]
[328844154,1717867846764,-1656.32,0.00029999,4]
[328844155,1717867846774,-1656.32,0.00029999,4]
[328844156,1717867846785,-1656.32,0.00029999,4]
[328844157,1717867846797,-1656.32,0.00029999,4]
[328844158,1717867846807,-1656.32,0.00029999,4]
[328844159,1717867846817,-1656.32,0.00029999,4]
[328844160,1717867846826,-1656.32,0.00029999,4]
[328844161,1717867846836,-1656.32,0.00029999,4]
[328844162,1717867846845,-1656.41586816,0.00029999,4]
[328844163,1717867846856,-81951.05277203,0.0003,13]
[328844164,1717867846866,-538.63983895,0.0003,5]
[328844165,1717867846879,-87419.79580634,0.0003,2]
[328844166,1717867846891,-24083.45514909,0.0003,2]
[328844167,1717867846902,-12993.48670445,0.0003,2]
[328844168,1717867846914,-349050.56258335,0.0003,2]
[328844169,1717867846925,-2343.36758848,0.0003,2]
[328844170,1717867847079,-22022.27805974,0.0003,2]
[328844171,1717867847095,-24800.27983179,0.0003,2]
[328844172,1717867847105,-24014.13802002,0.0003,5]
[328844173,1717867847119,-1046.80624143,0.0003,5]
[328844174,1717867847131,-4969.93,0.0003,5]
[328844175,1717867847144,-414.36,0.0003,5]
[328844176,1717867847157,-3345.05,0.0003,5]
[328844177,1717867847169,-3690.56082276,0.0003,5]
[328844178,1717867847180,-1046.65490964,0.0003,5]
[328844179,1717867847190,-500.0,0.0003,2]
[328844180,1717867847200,-201.38347984,0.0003,4]
[328844181,1717867847210,-3115.86608181,0.0003,2]
[328844182,1717867847222,-13488.28623489,0.0003,2]
[328844183,1717867847234,-33726.00650358,0.0003,2]
[328844184,1717867847247,-39567.98065039,0.0003,2]
[328844185,1717867847259,-58850.02874802,0.0003,2]
[328844186,1717867847271,-170379.13169002,0.0003,2]
[328844187,1717867847283,-21677.02586756,0.0003,2]
[328844188,1717867847296,-7528.3816616,0.0003,2]
[328844189,1717868023942,2420310.77603359,0.00014,2]
[328844207,1717868688243,1362.61061232,0.00014,2]
[328844208,1717868697170,893.21093344,0.000133,2]
[328844209,1717868698640,362.72006922,0.00014,2]
[328844211,1717868721182,19769.39955785,0.00014,2]
[328844212,1717868725672,5633.44662081,0.00014,2]
[328844213,1717868733932,155.0,0.00014,2]
[328844214,1717868739142,478.52713644,0.00014,2]
[328844215,1717868745122,202276.19482292,0.00014,2]
[328844216,1717868753884,242.26733657,0.00014,2]
[328844217,1717868953220,223.45418017,0.00013998,2]
[328844221,1717869032664,-563.49596263,0.00014045,2]
[328844222,1717869032677,-321.87333839,0.00014045,2]
[328844223,1717869032687,-453.25940463,0.00014046,2]
[328844224,1717869032697,-70.26725693,0.00014046,2]
[328844225,1717869032710,-651.19965211,0.00014046,2]
[328844226,1717869032720,-155.0,0.00014047,2]
[328844227,1717869032729,-223.45418015,0.00014048,2]
[328844228,1717869032739,-156.91231771,0.00014098,2]
[328844229,1717869032748,-223.45418015,0.00014098,2]
[328844230,1717869032758,-163.26,0.00014198,2]
[328844231,1717869032768,-625.77511416,0.00014398,2]
[328844232,1717869032778,-280.1,0.00014533,2]
[328844233,1717869032787,-627.99,0.00014783,2]
[328844234,1717869032797,-202.634389,0.000149,2]
[328844235,1717869032806,-170.15696502,0.000149,2]
[328844236,1717869032816,-604.01211228,0.000149,2]
[328844237,1717869032825,-264.88898994,0.000149,2]
[328844238,1717869032835,-159.4973613,0.000149,2]
[328844239,1717869032845,-318.38301392,0.000149,2]
[328844240,1717869032855,-12.10073234,0.000149,2]
[328844241,1717869032867,-313.52995673,0.000149,2]
[328844242,1717869032877,-150.0,0.00014959,2]
[328844243,1717869032887,-150.0,0.00014989,2]
[328844244,1717869032896,-150.0,0.00014989,2]
[328844245,1717869032905,-2822.79674565,0.00014989,2]
[328844246,1717869032917,-20591.04325435,0.00014989,2]
[328844247,1717869032927,-999.99,0.0001499,2]
[328844248,1717869032936,-314.94,0.0001499,3]
[328844249,1717869032946,-1996.25287366,0.0001499,2]
[328844250,1717869032958,-4098.10718112,0.0001499,2]
[328844251,1717869032970,-1786.75276464,0.0001499,2]
[328844252,1717869032980,-822.74718058,0.0001499,2]
[328844253,1717869032990,-1920.56,0.0001499,2]
[328844254,1717869032999,-1503.65561983,0.0001499,2]
[328844255,1717869033009,-200.28869414,0.0001499,2]
[328844256,1717869033018,-200.28869414,0.0001499,2]
[328844257,1717869033028,-151.43,0.0001499,2]
[328844258,1717869033038,-151.43,0.0001499,2]
[328844259,1717869033047,-151.43,0.0001499,2]
[328844260,1717869033057,-151.43,0.0001499,2]
[328844261,1717869033068,-403.78649963,0.00014998,2]
[328844262,1717869033078,-2334.89595111,0.00014998,2]
[328844263,1717869033088,-296.54214854,0.00014998,2]
[328844264,1717869033098,-1000.0,0.00014999,2]
[328844265,1717869033107,-299.99,0.00014999,2]
[328844267,1717869033116,-269.17328895,0.00014999,2]
[328844269,1717869033126,-3385.76959702,0.00014999,2]
[328844271,1717869033136,-9323.29643258,0.00014999,2]
[328844273,1717869033148,-726.25927746,0.00014999,2]
[328844276,1717869033162,-935.11650011,0.00014999,2]
[328844337,1717869038431,-11250.00194198,0.00014999,2]
[328844339,1717869038443,-1443.33466958,0.00014999,2]
[328844341,1717869038664,-446.9083603,0.00014999,2]
[328844354,1717869041660,-9611.0,0.00014999,2]
[328844355,1717869041672,-2404.01302423,0.00014999,2]
[328844356,1717869041685,-72500.0,0.00014999,2]
[328844357,1717869041697,-535.36462137,0.00014999,2]
[328844358,1717869041709,-1053.98522685,0.00014999,2]
[328844359,1717869041876,-4966.7063304,0.00014999,2]
[328844360,1717869041889,-419.77238971,0.00014999,2]
[328844361,1717869041902,-1297.1294578,0.00014999,2]
[328844362,1717869041916,-156319.31149492,0.00014999,2]
[328844363,1717869041928,-7257.71177516,0.00014999,2]
[328844364,1717869041941,-1047.1115,0.00014999,2]
[328844365,1717869041953,-216810.5614541,0.00014999,2]
[328844366,1717869041964,-53906.3630089,0.00015,2]
[328844368,1717869043234,-334.60923916,0.00015,2]
[328844371,1717869043246,-1030.8821226,0.00015,2]
[328844410,1717869045689,-155.0,0.00014999,2]
[328844412,1717869045700,-1928.20143572,0.00015,2]
[328844415,1717869045712,-720.37460955,0.00015,2]
[328844416,1717869045923,-595.805002,0.00015,2]
[328844421,1717869045936,-500.0,0.00015,2]
[328844424,1717869045950,-647.5444773,0.00015,2]
[328844426,1717869045961,-412.1753019,0.00015,2]
[328844428,1717869045973,-296.13443335,0.00015,2]
[328844430,1717869045986,-37582.15951789,0.00015,2]
[328844432,1717869046162,-566.08002,0.00015,2]
[328844434,1717869046179,-257.47344747,0.00015,2]
[328844436,1717869046193,-4445.23740939,0.00015,2]
[328844438,1717869046207,-895.60084819,0.00015,2]
[328844439,1717869046220,-2206.81227277,0.00015,2]
[328844440,1717869046235,-15446.79312572,0.00015,2]
[328844442,1717869046412,-326.49493016,0.00015,2]
[328844443,1717869046425,-17611.5660203,0.00015,2]
[328844444,1717869046437,-4372.17052413,0.00015,2]
[328844446,1717869046450,-18029.27475435,0.00015,2]
[328844448,1717869046462,-866.09290291,0.00015,2]
[328844450,1717869046644,-1099875.84547691,0.00015,2]
[328844473,1717869046864,-12580.5765154,0.00015,2]
[328844475,1717869046876,-2910.55810647,0.00015,2]
[328844477,1717869046888,-890.2,0.00015,2]
[328844479,1717869046902,-734.02466279,0.00015,2]
[328844481,1717869046915,-255.41169921,0.00015,2]
[328844483,1717869046930,-222046.98194624,0.00015,2]
[328844486,1717869046945,-12627.91719561,0.00015,2]
[328844488,1717869046957,-152956.80377091,0.00015,2]
[328844490,1717869046969,-6862.01560671,0.00015,2]
[328844492,1717869046981,-769.1350846,0.00015,2]
[328844494,1717869046993,-513.74322733,0.00015,2]
[328844497,1717869047005,-589426.84385714,0.00015,2]
[328844499,1717869047015,-1046.53950054,0.00015,2]
[328844501,1717869047024,-335.15,0.00015,2]
[328844503,1717869047034,-250.0,0.00015088,2]
[328844505,1717869047044,-250.0,0.0001541,2]
[328844507,1717869047054,-848.23,0.00015514,2]
[328844509,1717869047064,-176.95,0.00015967,2]
[328844510,1717869047074,-9999.99,0.00016116,2]
[328844512,1717869047085,-152.44,0.00016161,2]
[328844514,1717869047095,-152.44,0.00016174,2]
[328844516,1717869047105,-152.44,0.00016188,2]
[328844518,1717869047115,-152.44,0.00016201,2]
[328844520,1717869047125,-152.44,0.00016215,2]
[328844522,1717869047135,-152.44,0.00016228,2]
[328844523,1717869047145,-152.44,0.00016242,2]
[328844524,1717869047155,-399.25,0.00016249,2]
[328844525,1717869047170,-200.0,0.00016279,2]
[328844526,1717869047180,-1805.74855387,0.000165,2]
[328844527,1717869047189,-179.61,0.00016712,2]
[328844528,1717869047199,-165.49493537,0.000169,2]
[328844529,1717869047209,-508.34,0.00016987,2]
[328844530,1717869047219,-881.25,0.00017142,2]
[328844531,1717869047228,-689.58,0.0001726,2]
[328844532,1717869047238,-319.49,0.00017698,2]
[328844533,1717869047251,-23890.0,0.00017748,2]
[328844534,1717869047261,-929.87,0.00017837,2]
[328844535,1717869047271,-640.0,0.0001786,2]
[328844536,1717869047281,-289.59,0.00018166,2]
[328844537,1717869047291,-487.26,0.00018166,2]
[328844538,1717869047300,-491.86,0.00018166,2]
[328844540,1717869047310,-399.25,0.00018512,2]
[328844542,1717869047320,-173.34,0.00018644,2]
[328844544,1717869047330,-264.88898994,0.0001865,2]
[328844546,1717869047341,-1336.19,0.00018706,2]
[328844548,1717869047351,-300.0,0.00019198,2]
[328844550,1717869047361,-171.834,0.00019247,2]
[328844552,1717869047371,-250.76,0.00019758,2]
[328844554,1717869047381,-1271.76,0.0001976,2]
[328844556,1717869047390,-250.76,0.00019812,2]
[328844558,1717869047400,-250.76,0.00019866,2]
[328844560,1717869047413,-250.76,0.0001992,2]
[328844562,1717869047424,-250.76,0.00019975,2]
[328844564,1717869047434,-200.28869414,0.0001999,2]
[328844566,1717869047444,-189065.69294696,0.0002,4]
[328844568,1717869047454,-499.99,0.0002,2]
[328844570,1717869047463,-430.33,0.0002,2]
[328844572,1717869047473,-1980.83866895,0.0002,2]
[328844574,1717869047482,-250.76,0.00020029,2]
[328844576,1717869047492,-250.76,0.00020083,2]
[328844578,1717869047503,-640.0,0.00020092,2]
[328844579,1717869047514,-250.76,0.00020137,2]
[328844581,1717869047526,-250.76,0.00020191,2]
[328844583,1717869047536,-250.76,0.00020245,2]
[328844585,1717869047546,-250.76,0.000203,2]
[328844587,1717869047556,-250.76,0.00020354,2]
[328844589,1717869047566,-250.76,0.00020408,2]
[328844591,1717869047576,-250.76,0.00020462,2]
[328844593,1717869047586,-250.76,0.00020516,2]
[328844595,1717869047596,-308.63462268,0.00020563,2]
[328844597,1717869047607,-4116.86116669,0.00020563,2]
[328844599,1717869047617,-250.76,0.00020571,2]
[328844601,1717869047627,-929.87,0.00020576,2]
[328844603,1717869047637,-250.76,0.00020625,2]
[328844605,1717869047647,-250.76,0.00020679,2]
[328844607,1717869047658,-250.76,0.00020733,2]
[328844609,1717869047671,-399.25,0.00020776,2]
[328844611,1717869047681,-250.76,0.00020787,2]
[328844613,1717869047691,-1000.0,0.000219,2]
[328844615,1717869047701,-250.0,0.00021918,2]
[328844617,1717869047711,-1347.5971259,0.00022,4]
[328844619,1717869047721,-186586.49201826,0.00022,4]
[328844621,1717869047731,-640.0,0.00022324,2]
[328844623,1717869047741,-264.88898994,0.000224,2]
[328844625,1717869047752,-325.63068907,0.000224,2]
[328844627,1717869047762,-1000.0,0.00022491,2]
[328844629,1717869047772,-1000.0,0.00022499,2]
[328844631,1717869047783,-161.21,0.00022582,2]
[328844633,1717869047793,-150.0,0.00023019,2]
[328844635,1717869047803,-399.25,0.0002304,2]
[328844637,1717869047813,-929.87,0.00023316,2]
[328844639,1717869047823,-549.30032419,0.00024,2]
[328844641,1717869047832,-180.0,0.0002423,2]
[328844643,1717869047842,-380.71,0.00024384,2]
[328844645,1717869047853,-150.192,0.00024468,2]
[328844647,1717869047863,-640.0,0.00024557,2]
[328844649,1717869047872,-500.0,0.000247,2]
[328844651,1717869047882,-345.8904149,0.00024799,2]
[328844653,1717869047892,-345.89041483,0.00024799,2]
[328844655,1717869047902,-345.89041483,0.00024799,2]
[328844657,1717869047914,-345.89041483,0.00024799,2]
[328844659,1717869047924,-345.89041483,0.00024799,2]
[328844661,1717869047934,-345.89041483,0.00024799,2]
[328844663,1717869047944,-345.89041483,0.000249,2]
[328844665,1717869047953,-186.67307346,0.00025,2]
[328844667,1717869047963,-1250.0,0.00025,2]
[328844669,1717869047972,-706.32929204,0.00025,2]
[328844671,1717869047982,-329.13133266,0.00025,5]
[328844673,1717869047994,-399.25,0.00025304,2]
[328844675,1717869048004,-264.88898994,0.0002615,2]
[328844677,1717869048015,-351.88844729,0.00026245,2]
[328844679,1717869048025,-152.0,0.00026459,3]
[328844681,1717869048035,-345.89041483,0.00026567,2]
[328844683,1717869048045,-22743.25,0.00026591,2]
[328844685,1717869048057,-442.4,0.00026591,2]
[328844687,1717869048067,-5766.77,0.00026591,2]
[328844689,1717869048077,-1141.3,0.00026591,2]
[328844691,1717869048087,-152.1600038,0.00026732,2]
[328844693,1717869048098,-640.0,0.00026789,2]
[328844695,1717869048107,-1300.0,0.00027,2]
[328844697,1717869048117,-654.85228544,0.00027,3]
[328844699,1717869048127,-169.7,0.0002702,2]
[328844701,1717869048137,-154.2025836,0.00027208,2]
[328844703,1717869048148,-152.1600038,0.00027279,2]
[328844705,1717869048158,-2377.0,0.000274,2]
[328844707,1717869048170,-500.0,0.000274,2]
[328844709,1717869048181,-198.58583746,0.00027431,2]
[328844711,1717869048191,-159.67097594,0.00027457,2]
[328844713,1717869048201,-155.20555368,0.00027534,2]
[328844715,1717869048212,-198.58583746,0.00027559,2]
[328844717,1717869048223,-399.25,0.00027568,2]
[328844719,1717869048234,-152.0,0.00027569,4]
[328844721,1717869048244,-160.38064444,0.0002758,2]
[328844723,1717869048255,-360.0,0.00027728,2]
[328844725,1717869048265,-152.1600038,0.00027811,2]
[328844727,1717869048275,-159.67097594,0.00027821,2]
[328844729,1717869048285,-153.24544879,0.00027867,2]
[328844731,1717869048295,-166.91520939,0.00027949,2]
[328844733,1717869048305,-154.97899525,0.00028045,2]
[328844735,1717869048315,-153.52790425,0.00028055,2]
[328844737,1717869048325,-164.70404694,0.00028129,2]
[328844739,1717869048336,-159.67097594,0.00028214,2]
[328844741,1717869048346,-161.69723933,0.00028232,2]
[328844742,1717869048357,-345.89041483,0.00028233,2]
[328844743,1717869048367,-166.66666667,0.00028357,2]
[328844744,1717869048377,-152.0,0.00028679,5]
[328844745,1717869048387,-715.19,0.00028768,2]
[328844746,1717869048397,-159.67097594,0.00028771,2]
[328844747,1717869048407,-161.69723933,0.0002885,2]
[328844748,1717869048419,-159.67097594,0.00028931,2]
[328844749,1717869048429,-155.63070279,0.00029,2]
[328844750,1717869048439,-5000.0,0.00029,7]
[328844751,1717869048449,-714.03763505,0.00029,2]
[328844752,1717869048459,-750.12345678,0.00029,4]
[328844754,1717869048471,-758.66403614,0.00029,5]
[328844757,1717869048483,-10002.10626765,0.00029,2]
[328844759,1717869048495,-154.2025836,0.00029013,2]
[328844761,1717869048508,-174.22168653,0.000291,2]
[328844763,1717869048520,-153.24544879,0.00029175,2]
[328844766,1717869048534,-153.24544879,0.00029284,2]
[328844768,1717869048545,-152.1600038,0.00029376,2]
[328844770,1717869048557,-153.24544879,0.00029501,2]
[328844772,1717869048569,-164.70404694,0.00029505,2]
[328844774,1717869048579,-161.69723933,0.00029556,2]
[328844776,1717869048590,-382.13509686,0.00029668,2]
[328844778,1717869048601,-183.69503,0.000297,2]
[328844780,1717869048612,-179.61,0.00029702,2]
[328844782,1717869048625,-2248.546,0.00029759,2]
[328844784,1717869048636,-549.6274,0.00029759,2]
[328844786,1717869048647,-500.0,0.0002976,2]
[328844789,1717869048659,-200.0,0.0002976,2]
[328844791,1717869048671,-151.43,0.00029789,2]
[328844793,1717869048683,-152.0,0.00029789,6]
[328844795,1717869048694,-3338.5617,0.00029799,2]
[328844797,1717869048706,-58673.0434,0.00029799,2]
[328844799,1717869048718,-21173.24541671,0.00029799,2]
[328844802,1717869048734,-1898.23381044,0.00029799,2]
[328844804,1717869048748,-2356.43045917,0.00029799,2]
[328844805,1717869048762,-2835.79270651,0.00029799,2]
[328844806,1717869048777,-2497.22459247,0.00029799,2]
[328844807,1717869048792,-4142.58559677,0.00029799,2]
[328844808,1717869048808,-7456.86471793,0.00029799,2]
[328844809,1717869048821,-164.68221473,0.000298,2]
[328844810,1717869048833,-1000.0,0.000298,2]
[328844811,1717869048844,-399.25,0.00029832,2]
[328844812,1717869048856,-161.69723933,0.00029853,2]
[328844813,1717869048867,-196.94617788,0.00029863,4]
[328844814,1717869048877,-535.80911183,0.00029863,2]
[328844815,1717869048889,-500.0,0.00029863,4]
[328844816,1717869048903,-500.0,0.00029863,4]
[328844817,1717869048915,-500.0,0.00029863,4]
[328844818,1717869048926,-600.6803,0.00029863,4]
[328844819,1717869048938,-500.0,0.00029863,4]
[328844820,1717869048950,-500.0,0.00029863,4]
[328844821,1717869048962,-500.0,0.00029863,4]
[328844822,1717869048975,-500.0,0.00029863,4]
[328844823,1717869048987,-500.0,0.00029863,4]
[328844824,1717869048999,-500.0,0.00029863,4]
[328844825,1717869049011,-500.0,0.00029863,4]
[328844826,1717869049022,-500.0,0.00029863,4]
[328844827,1717869049034,-500.0,0.00029863,4]
[328844828,1717869049045,-472.94443814,0.00029863,4]
[328844829,1717869049072,-118.22556186,0.00029863,4]
[328844830,1717869049082,-500.0,0.00029863,2]
[328844831,1717869049093,-50.17447278,0.00029863,2]
[328844832,1717869049106,-449.82552722,0.00029863,2]
[328844833,1717869049117,-500.0,0.00029863,2]
[328844834,1717869049127,-500.0,0.00029863,2]
[328844835,1717869049139,-500.0,0.00029863,2]
[328844836,1717869049150,-500.0,0.00029863,2]
[328844837,1717869049161,-468.45003854,0.00029863,2]
[328844838,1717869049173,-500.0,0.00029863,4]
[328844839,1717869049186,-500.0,0.00029863,4]
[328844840,1717869049198,-153.76393376,0.00029863,4]
[328844841,1717869049242,2657.60071046,0.00013998,2]
[328844842,1717869049305,155.13656754,0.00013998,2]
[328844843,1717869055205,17133.08171113,0.00013998,2]
[328844844,1717869055791,180.65370112,0.00013998,2]
[328844845,1717869075718,180.56403406,0.00013998,2]
[328844847,1717869537744,1386.94,0.00028,90]
[328844862,1717870232875,-2170.8692,0.00014899,2]
[328844863,1717870232885,-222.30954794,0.00014999,2]
[328844864,1717870232895,-150.0,0.00019451,2]
[328844865,1717870232905,-800.22423721,0.00024382,2]
[328844866,1717870232915,-155.20197404,0.00024383,2]
[328844867,1717870232927,-1825.63669491,0.00024383,2]
[328844868,1717870232937,-164.46,0.00024384,2]
[328844869,1717870232947,-169.24,0.00024384,2]
[328844870,1717870232957,-499.99,0.00024384,2]
[328844871,1717870232967,-201.26,0.00024468,7]
[328844872,1717870232977,-5131.889,0.00024468,2]
[328844873,1717870232986,-259.51,0.00025812,2]
[328844874,1717870232996,-1500.0,0.000266,2]
[328844875,1717870233006,-584.97272385,0.00026698,2]
[328844876,1717870233017,-175.407633,0.00026826,2]
[328844877,1717870233027,-2140.0,0.000271,2]
[328844878,1717870233037,-671.0,0.000271,2]
[328844879,1717870233047,-154.00356296,0.0002726,2]
[328844880,1717870233058,-250.0,0.00027433,2]
[328844881,1717870233070,-250.0,0.0002751,2]
[328844882,1717870233080,-1000.0,0.00027511,2]
[328844883,1717870233089,-153.52790425,0.00027561,2]
[328844884,1717870233099,-155.46650355,0.00027702,2]
[328844885,1717870233108,-153.4285729,0.00027718,2]
[328844886,1717870233118,-618.381825,0.00027771,2]
[328844887,1717870233127,-982.546175,0.00027771,2]
[328844888,1717870233137,-155.46650355,0.00027785,2]
[328844889,1717870233148,-153.82412396,0.00027791,2]
[328844890,1717870233158,-200.0,0.0002797,2]
[328844891,1717870233167,-362.81476569,0.00028,2]
[328844892,1717870233177,-299.61289414,0.00028,2]
[328844893,1717870233188,-250.0,0.00028052,2]
[328844894,1717870233197,-183.14,0.00028053,2]
[328844895,1717870233207,-259.51,0.00028076,2]
[328844896,1717870233216,-155.2055537,0.00028085,2]
[328844897,1717870233225,-89.81308229,0.00028118,2]
[328844898,1717870233241,-528.56874271,0.00028118,2]
[328844899,1717870233251,-982.546175,0.00028118,2]
[328844900,1717870233261,-153.4285729,0.00028175,2]
[328844901,1717870233270,-175.407633,0.00028427,2]
[328844902,1717870233280,-164.70404696,0.00028458,2]
[328844903,1717870233289,-618.381825,0.00028465,2]
[328844904,1717870233299,-982.546175,0.00028465,2]
[328844905,1717870233308,-155.46650355,0.00028534,2]
[328844906,1717870233317,-154.2025836,0.00028575,2]
[328844907,1717870233327,-155.46650355,0.00028697,2]
[328844908,1717870233336,-175.407633,0.00028746,2]
[328844909,1717870233346,-618.381825,0.00028812,2]
[328844910,1717870233355,-982.546175,0.00028812,2]
[328844911,1717870233365,-595.99,0.00028916,2]
[328844912,1717870233375,-200.0,0.0002897,2]